[Event "Titled Tuesday Blitz June 13 Early 2023"]
[White "Ozalp, Burak"]
[Black "De Silva, L M S T"]
[WhiteFideId "6314210"]
[BlackFideId "9953698"]
[WhiteElo "2106"]
[BlackElo "2395"]
[Result "1-0"]
[Round "1"]
[TimeControl "180+2"]
[Date "2023.06.13"]
[WhiteClock "0:00:12"]
[BlackClock "0:01:27"]
[Board "133"]

1. Nf3 {[%clk 0:02:57]}  d5 {[%clk 0:02:59]} 2. e3 {[%clk 0:02:55]}  Nf6 {[%clk 0:02:59]} 3. c4 {[%clk 0:02:55]}  c6 {[%clk 0:02:58]} 4. b3 {[%clk 0:02:55]}  g6 {[%clk 0:02:58]} 5. Bb2 {[%clk 0:02:55]}  Bg7 {[%clk 0:02:58]} 6. Be2 {[%clk 0:02:52]}  O-O {[%clk 0:02:59]} 7. O-O {[%clk 0:02:53]}  Nbd7 {[%clk 0:02:58]} 8. h3 {[%clk 0:02:41]}  Re8 {[%clk 0:02:44]} 9. Ne5 {[%clk 0:02:22]}  Ne4 {[%clk 0:02:37]} 10. d4 {[%clk 0:02:03]}  Nxe5 {[%clk 0:02:34]} 11. dxe5 {[%clk 0:02:03]}  Be6 {[%clk 0:02:33]} 12. Na3 {[%clk 0:01:35]}  Qc7 {[%clk 0:02:30]} 13. f4 {[%clk 0:01:33]}  Red8 {[%clk 0:02:28]} 14. Qc2 {[%clk 0:01:29]}  Ng3 {[%clk 0:02:24]} 15. Rfe1 {[%clk 0:01:23]}  Nxe2+ {[%clk 0:02:20]} 16. Qxe2 {[%clk 0:01:20]}  dxc4 {[%clk 0:02:14]} 17. Nxc4 {[%clk 0:01:18]}  b5 {[%clk 0:02:05]} 18. Nd2 {[%clk 0:01:16]}  c5 {[%clk 0:02:03]} 19. Nf3 {[%clk 0:01:09]}  Qb6 {[%clk 0:01:57]} 20. Kh1 {[%clk 0:01:02]}  Bd5 {[%clk 0:01:55]} 21. e4 {[%clk 0:01:00]}  Bb7 {[%clk 0:01:55]} 22. Rad1 {[%clk 0:00:58]}  e6 {[%clk 0:01:54]} 23. f5 {[%clk 0:00:52]}  Bh6 {[%clk 0:01:52]} 24. Bc1 {[%clk 0:00:47]}  Bxc1 {[%clk 0:01:50]} 25. Rxc1 {[%clk 0:00:47]}  Rac8 {[%clk 0:01:46]} 26. Qe3 {[%clk 0:00:42]}  exf5 {[%clk 0:01:46]} 27. exf5 {[%clk 0:00:42]}  Bxf3 {[%clk 0:01:46]} 28. Qxf3 {[%clk 0:00:35]}  Rd4 {[%clk 0:01:45]} 29. e6 {[%clk 0:00:30]}  Qc6 {[%clk 0:01:40]} 30. exf7+ {[%clk 0:00:29]}  Kxf7 {[%clk 0:01:41]} 31. fxg6+ {[%clk 0:00:27]}  Kxg6 {[%clk 0:01:40]} 32. Qg3+ {[%clk 0:00:23]}  Kh6 {[%clk 0:01:35]} 33. Re5 {[%clk 0:00:19]}  Qf6 {[%clk 0:01:35]} 34. Rce1 {[%clk 0:00:15]}  Rc6 {[%clk 0:01:32]} 35. Qe3+ {[%clk 0:00:13]}  Qf4 {[%clk 0:01:33]} 36. Re6+ {[%clk 0:00:11]}  Rxe6 {[%clk 0:01:32]} 37. Qxe6+ {[%clk 0:00:12]}  Kg7 {[%clk 0:01:32]} 38. Qe7+ {[%clk 0:00:12]}  Qf7 {[%clk 0:01:30]} 39. Qg5+ {[%clk 0:00:12]}  Kf8 {[%clk 0:01:27]} 40. Qxc5+ {[%clk 0:00:12]} 1-0


[Site "https://www.chess.com"]

[Event "Titled Tuesday Blitz June 13 Early 2023"]
[White "Silva, Caio Henrique Angelico"]
[Black "crosky"]
[WhiteFideId "22777210"]
[WhiteElo "2096"]
[BlackElo "2355"]
[Result "0-1"]
[Round "1"]
[TimeControl "180+2"]
[Date "2023.06.13"]
[WhiteClock "0:00:09"]
[BlackClock "0:00:17"]
[Board "138"]

1. Nf3 {[%clk 0:02:59]}  Nf6 {[%clk 0:02:44]} 2. g3 {[%clk 0:02:58]}  b5 {[%clk 0:02:42]} 3. Bg2 {[%clk 0:02:55]}  Bb7 {[%clk 0:02:42]} 4. b3 {[%clk 0:02:55]}  c5 {[%clk 0:02:42]} 5. Bb2 {[%clk 0:02:56]}  e6 {[%clk 0:02:42]} 6. O-O {[%clk 0:02:55]}  Be7 {[%clk 0:02:42]} 7. c4 {[%clk 0:02:55]}  b4 {[%clk 0:02:35]} 8. d4 {[%clk 0:02:53]}  O-O {[%clk 0:02:32]} 9. dxc5 {[%clk 0:02:27]}  Bxc5 {[%clk 0:02:31]} 10. Nbd2 {[%clk 0:02:27]}  d6 {[%clk 0:02:25]} 11. Qc2 {[%clk 0:02:21]}  Nbd7 {[%clk 0:02:24]} 12. Rad1 {[%clk 0:02:16]}  Qb6 {[%clk 0:02:24]} 13. e3 {[%clk 0:02:13]}  Ng4 {[%clk 0:02:16]} 14. Ne4 {[%clk 0:01:54]}  Bxe3 {[%clk 0:02:05]} 15. fxe3 {[%clk 0:01:16]}  Nxe3 {[%clk 0:02:04]} 16. Qf2 {[%clk 0:00:47]}  Bxe4 {[%clk 0:02:00]} 17. Bd4 {[%clk 0:00:44]}  Nxd1 {[%clk 0:02:00]} 18. Rxd1 {[%clk 0:00:44]}  Nc5 {[%clk 0:01:56]} 19. Be3 {[%clk 0:00:40]}  a5 {[%clk 0:01:50]} 20. Nd4 {[%clk 0:00:35]}  Bxg2 {[%clk 0:01:50]} 21. Qxg2 {[%clk 0:00:36]}  a4 {[%clk 0:01:46]} 22. Nb5 {[%clk 0:00:35]}  axb3 {[%clk 0:01:24]} 23. axb3 {[%clk 0:00:36]}  Rfd8 {[%clk 0:01:06]} 24. Qf2 {[%clk 0:00:33]}  Qc6 {[%clk 0:01:00]} 25. Nd4 {[%clk 0:00:29]}  Qe4 {[%clk 0:00:59]} 26. Re1 {[%clk 0:00:28]}  Nd3 {[%clk 0:00:59]} 27. Qc2 {[%clk 0:00:26]}  Ra2 {[%clk 0:00:32]} 28. Qxa2 {[%clk 0:00:20]}  Nxe1 {[%clk 0:00:33]} 29. Qd2 {[%clk 0:00:14]}  Qxd4 {[%clk 0:00:25]} 30. Qxe1 {[%clk 0:00:14]}  Qd3 {[%clk 0:00:22]} 31. Bf2 {[%clk 0:00:10]}  Qxb3 {[%clk 0:00:22]} 32. c5 {[%clk 0:00:07]}  dxc5 {[%clk 0:00:19]} 33. Qe5 {[%clk 0:00:08]}  Qd1+ {[%clk 0:00:15]} 34. Kg2 {[%clk 0:00:08]}  Qd5+ {[%clk 0:00:16]} 35. Qxd5 {[%clk 0:00:09]}  Rxd5 {[%clk 0:00:16]} 36. Kf3 {[%clk 0:00:09]}  c4 {[%clk 0:00:16]} 37. Kg2 {[%clk 0:00:09]}  c3 {[%clk 0:00:17]} 0-1


[Site "https://www.chess.com"]

[Event "Titled Tuesday Blitz June 13 Early 2023"]
[White "Rosenberg, Evan S"]
[Black "MaryanKyrychenko"]
[WhiteFideId "2019299"]
[WhiteElo "2352"]
[BlackElo "2647"]
[Result "1-0"]
[Round "1"]
[TimeControl "180+2"]
[Date "2023.06.13"]
[WhiteClock "0:00:20"]
[BlackClock "0:00:10"]
[Board "139"]

1. d4 {[%clk 0:03:00]}  g6 {[%clk 0:02:57]} 2. e4 {[%clk 0:02:59]}  Bg7 {[%clk 0:02:57]} 3. Nc3 {[%clk 0:02:59]}  d6 {[%clk 0:02:55]} 4. Nf3 {[%clk 0:02:59]}  Bg4 {[%clk 0:02:54]} 5. Be2 {[%clk 0:02:57]}  Nc6 {[%clk 0:02:47]} 6. Be3 {[%clk 0:02:55]}  Bxf3 {[%clk 0:02:45]} 7. Bxf3 {[%clk 0:02:55]}  e5 {[%clk 0:02:46]} 8. Ne2 {[%clk 0:02:48]}  Nf6 {[%clk 0:02:28]} 9. c3 {[%clk 0:02:44]}  O-O {[%clk 0:02:27]} 10. O-O {[%clk 0:02:44]}  Re8 {[%clk 0:02:27]} 11. Ng3 {[%clk 0:02:42]}  h5 {[%clk 0:02:22]} 12. Bg5 {[%clk 0:02:39]}  Qd7 {[%clk 0:02:20]} 13. d5 {[%clk 0:02:35]}  Ne7 {[%clk 0:02:15]} 14. c4 {[%clk 0:02:31]}  b6 {[%clk 0:02:10]} 15. Re1 {[%clk 0:02:30]}  a5 {[%clk 0:02:02]} 16. Qd2 {[%clk 0:02:30]}  Kh7 {[%clk 0:01:41]} 17. b3 {[%clk 0:02:30]}  Nfg8 {[%clk 0:01:27]} 18. Rac1 {[%clk 0:02:27]}  f6 {[%clk 0:01:26]} 19. Be3 {[%clk 0:02:27]}  Bh6 {[%clk 0:01:17]} 20. a3 {[%clk 0:02:27]}  Bxe3 {[%clk 0:01:17]} 21. Qxe3 {[%clk 0:02:25]}  Nh6 {[%clk 0:01:13]} 22. b4 {[%clk 0:02:24]}  axb4 {[%clk 0:01:13]} 23. axb4 {[%clk 0:02:24]}  h4 {[%clk 0:01:09]} 24. Nf1 {[%clk 0:02:18]}  f5 {[%clk 0:01:09]} 25. exf5 {[%clk 0:02:17]}  gxf5 {[%clk 0:01:07]} 26. Qg5 {[%clk 0:02:13]}  Rg8 {[%clk 0:01:07]} 27. Qxh4 {[%clk 0:02:12]}  Ng6 {[%clk 0:01:07]} 28. Qf6 {[%clk 0:02:06]}  Raf8 {[%clk 0:01:03]} 29. Qe6 {[%clk 0:02:06]}  Qxe6 {[%clk 0:01:03]} 30. dxe6 {[%clk 0:02:06]}  Nf4 {[%clk 0:01:02]} 31. Rc2 {[%clk 0:01:44]}  Nxe6 {[%clk 0:00:51]} 32. Bd5 {[%clk 0:01:43]}  Rg6 {[%clk 0:00:51]} 33. Bxe6 {[%clk 0:01:43]}  Rxe6 {[%clk 0:00:52]} 34. c5 {[%clk 0:01:43]}  bxc5 {[%clk 0:00:52]} 35. bxc5 {[%clk 0:01:43]}  d5 {[%clk 0:00:52]} 36. c6 {[%clk 0:01:43]}  f4 {[%clk 0:00:51]} 37. Rc5 {[%clk 0:01:38]}  Rd8 {[%clk 0:00:50]} 38. Nd2 {[%clk 0:01:36]}  Nf5 {[%clk 0:00:45]} 39. Nf3 {[%clk 0:01:36]}  Kg7 {[%clk 0:00:36]} 40. Rxe5 {[%clk 0:01:31]}  Rxe5 {[%clk 0:00:35]} 41. Nxe5 {[%clk 0:01:32]}  d4 {[%clk 0:00:31]} 42. Nd3 {[%clk 0:01:30]}  Ne7 {[%clk 0:00:20]} 43. Kf1 {[%clk 0:01:17]}  Rd6 {[%clk 0:00:19]} 44. Nxf4 {[%clk 0:01:12]}  d3 {[%clk 0:00:16]} 45. Ke1 {[%clk 0:01:11]}  d2+ {[%clk 0:00:13]} 46. Kd1 {[%clk 0:01:11]}  Nxc6 {[%clk 0:00:13]} 47. Rc2 {[%clk 0:01:03]}  Nd4 {[%clk 0:00:10]} 48. Rxd2 {[%clk 0:01:03]}  c5 {[%clk 0:00:10]} 49. Ne2 {[%clk 0:00:52]}  Ra6 {[%clk 0:00:06]} 50. Nxd4 {[%clk 0:00:52]}  Ra1+ {[%clk 0:00:06]} 51. Ke2 {[%clk 0:00:52]}  cxd4 {[%clk 0:00:07]} 52. Rxd4 {[%clk 0:00:52]}  Ra2+ {[%clk 0:00:07]} 53. Rd2 {[%clk 0:00:52]}  Ra4 {[%clk 0:00:08]} 54. Ke3 {[%clk 0:00:51]}  Kf6 {[%clk 0:00:08]} 55. h3 {[%clk 0:00:39]}  Kg5 {[%clk 0:00:07]} 56. g3 {[%clk 0:00:35]}  Ra3+ {[%clk 0:00:07]} 57. Rd3 {[%clk 0:00:35]}  Ra2 {[%clk 0:00:07]} 58. f4+ {[%clk 0:00:36]}  Kf5 {[%clk 0:00:07]} 59. g4+ {[%clk 0:00:35]}  Kf6 {[%clk 0:00:08]} 60. Kf3 {[%clk 0:00:35]}  Rh2 {[%clk 0:00:08]} 61. Kg3 {[%clk 0:00:35]}  Re2 {[%clk 0:00:08]} 62. Rd6+ {[%clk 0:00:34]}  Kg7 {[%clk 0:00:08]} 63. g5 {[%clk 0:00:33]}  Re3+ {[%clk 0:00:09]} 64. Kg4 {[%clk 0:00:33]}  Kf7 {[%clk 0:00:10]} 65. h4 {[%clk 0:00:31]}  Kg7 {[%clk 0:00:10]} 66. h5 {[%clk 0:00:31]}  Re1 {[%clk 0:00:10]} 67. h6+ {[%clk 0:00:31]}  Kh8 {[%clk 0:00:11]} 68. Rd7 {[%clk 0:00:30]}  Kg8 {[%clk 0:00:10]} 69. g6 {[%clk 0:00:29]}  Kf8 {[%clk 0:00:11]} 70. Rf7+ {[%clk 0:00:21]}  Kg8 {[%clk 0:00:10]} 71. h7+ {[%clk 0:00:20]}  Kh8 {[%clk 0:00:11]} 72. Rf8+ {[%clk 0:00:21]}  Kg7 {[%clk 0:00:12]} 73. h8=Q+ {[%clk 0:00:21]}  Kxg6 {[%clk 0:00:10]} 74. Qf6+ {[%clk 0:00:20]} 1-0


[Site "https://www.chess.com"]

[Event "Titled Tuesday Blitz June 13 Early 2023"]
[White "Veiga, Jose Francisco R P Neves"]
[Black "FromTexas54"]
[WhiteFideId "1930087"]
[WhiteElo "2319"]
[BlackElo "2349"]
[Result "1-0"]
[Round "1"]
[TimeControl "180+2"]
[Date "2023.06.13"]
[WhiteClock "0:00:07"]
[BlackClock "0:00:00"]
[Board "140"]

1. c4 {[%clk 0:01:41]}  Nf6 {[%clk 0:02:56]} 2. Nc3 {[%clk 0:01:39]}  g6 {[%clk 0:02:56]} 3. e4 {[%clk 0:01:38]}  d6 {[%clk 0:02:56]} 4. g3 {[%clk 0:01:37]}  Bg7 {[%clk 0:02:56]} 5. Bg2 {[%clk 0:01:37]}  O-O {[%clk 0:02:57]} 6. Nge2 {[%clk 0:01:32]}  c6 {[%clk 0:02:57]} 7. O-O {[%clk 0:01:32]}  Nbd7 {[%clk 0:02:57]} 8. d4 {[%clk 0:01:28]}  e5 {[%clk 0:02:57]} 9. h3 {[%clk 0:01:17]}  a5 {[%clk 0:02:56]} 10. Be3 {[%clk 0:01:15]}  exd4 {[%clk 0:02:54]} 11. Nxd4 {[%clk 0:01:15]}  Nc5 {[%clk 0:02:55]} 12. Qc2 {[%clk 0:01:15]}  a4 {[%clk 0:02:53]} 13. b4 {[%clk 0:01:12]}  axb3 {[%clk 0:02:52]} 14. axb3 {[%clk 0:01:13]}  Rxa1 {[%clk 0:02:50]} 15. Rxa1 {[%clk 0:01:14]}  Re8 {[%clk 0:02:48]} 16. Rd1 {[%clk 0:01:09]}  Qa5 {[%clk 0:02:34]} 17. Bd2 {[%clk 0:00:53]}  Qb6 {[%clk 0:02:23]} 18. Be3 {[%clk 0:00:47]}  Qa5 {[%clk 0:01:53]} 19. Nde2 {[%clk 0:00:45]}  Qb4 {[%clk 0:01:47]} 20. Rxd6 {[%clk 0:00:24]}  Ncxe4 {[%clk 0:00:51]} 21. Nxe4 {[%clk 0:00:23]}  Nxe4 {[%clk 0:00:50]} 22. Rd1 {[%clk 0:00:21]}  Nc5 {[%clk 0:00:49]} 23. Bxc5 {[%clk 0:00:15]}  Qxc5 {[%clk 0:00:47]} 24. Nc3 {[%clk 0:00:15]}  Bf5 {[%clk 0:00:45]} 25. Ne4 {[%clk 0:00:15]}  Qe5 {[%clk 0:00:35]} 26. Re1 {[%clk 0:00:15]}  Qd4 {[%clk 0:00:35]} 27. g4 {[%clk 0:00:14]}  Be6 {[%clk 0:00:26]} 28. Rd1 {[%clk 0:00:13]}  Qe5 {[%clk 0:00:24]} 29. Nd6 {[%clk 0:00:13]}  Rb8 {[%clk 0:00:18]} 30. Qe4 {[%clk 0:00:11]}  Qxe4 {[%clk 0:00:16]} 31. Bxe4 {[%clk 0:00:12]}  Be5 {[%clk 0:00:14]} 32. Kg2 {[%clk 0:00:11]}  Kf8 {[%clk 0:00:13]} 33. Bf3 {[%clk 0:00:10]}  Ke7 {[%clk 0:00:12]} 34. Ne4 {[%clk 0:00:10]}  b5 {[%clk 0:00:07]} 35. Nc5 {[%clk 0:00:10]}  bxc4 {[%clk 0:00:06]} 36. Nxe6 {[%clk 0:00:10]}  Kxe6 {[%clk 0:00:06]} 37. bxc4 {[%clk 0:00:11]}  Rb2 {[%clk 0:00:05]} 38. Bxc6 {[%clk 0:00:11]}  f5 {[%clk 0:00:03]} 39. Bd5+ {[%clk 0:00:11]}  Kf6 {[%clk 0:00:03]} 40. gxf5 {[%clk 0:00:10]}  gxf5 {[%clk 0:00:04]} 41. c5 {[%clk 0:00:09]}  Rc2 {[%clk 0:00:04]} 42. c6 {[%clk 0:00:09]}  Bc7 {[%clk 0:00:04]} 43. Rd3 {[%clk 0:00:07]}  Bb6 {[%clk 0:00:04]} 44. Rf3 {[%clk 0:00:08]}  Ke5 {[%clk 0:00:03]} 45. Bg8 {[%clk 0:00:08]}  Rxc6 {[%clk 0:00:02]} 46. Bxh7 {[%clk 0:00:08]}  Rf6 {[%clk 0:00:03]} 47. h4 {[%clk 0:00:07]}  f4 {[%clk 0:00:03]} 48. Kh3 {[%clk 0:00:07]}  Bd4 {[%clk 0:00:02]} 49. Bd3 {[%clk 0:00:07]}  Kd5 {[%clk 0:00:03]} 50. h5 {[%clk 0:00:07]}  Be5 {[%clk 0:00:03]} 51. Kg4 {[%clk 0:00:08]}  Ke6 {[%clk 0:00:04]} 52. Kg5 {[%clk 0:00:08]}  Rf8 {[%clk 0:00:04]} 53. Bc4+ {[%clk 0:00:08]}  Ke7 {[%clk 0:00:03]} 54. h6 {[%clk 0:00:08]}  Bf6+ {[%clk 0:00:02]} 55. Kg6 {[%clk 0:00:09]}  Be5 {[%clk 0:00:01]} 56. h7 {[%clk 0:00:08]}  Rf6+ {[%clk 0:00:02]} 57. Kg5 {[%clk 0:00:08]}  Rf8 {[%clk 0:00:00]} 58. Ra3 {[%clk 0:00:07]} 1-0


[Site "https://www.chess.com"]

[Event "Titled Tuesday Blitz June 13 Early 2023"]
[White "Ovetchkin, Roman"]
[Black "Mayaud, Raphael"]
[WhiteFideId "4119991"]
[BlackFideId "627151"]
[WhiteElo "2398"]
[BlackElo "2191"]
[Result "1-0"]
[Round "1"]
[TimeControl "180+2"]
[Date "2023.06.13"]
[WhiteClock "0:00:36"]
[BlackClock "0:00:00"]
[Board "142"]

1. d4 {[%clk 0:02:54]}  Nf6 {[%clk 0:02:59]} 2. c4 {[%clk 0:02:52]}  c5 {[%clk 0:02:59]} 3. d5 {[%clk 0:02:52]}  b5 {[%clk 0:02:59]} 4. cxb5 {[%clk 0:02:51]}  a6 {[%clk 0:02:59]} 5. bxa6 {[%clk 0:02:51]}  g6 {[%clk 0:02:59]} 6. Nc3 {[%clk 0:02:51]}  Bg7 {[%clk 0:02:59]} 7. e4 {[%clk 0:02:52]}  O-O {[%clk 0:02:59]} 8. e5 {[%clk 0:02:50]}  Ne8 {[%clk 0:02:59]} 9. Nf3 {[%clk 0:02:50]}  d6 {[%clk 0:02:57]} 10. h4 {[%clk 0:02:50]}  dxe5 {[%clk 0:02:56]} 11. h5 {[%clk 0:02:50]}  Qb6 {[%clk 0:02:20]} 12. hxg6 {[%clk 0:02:41]}  fxg6 {[%clk 0:02:19]} 13. d6 {[%clk 0:02:32]}  Qxd6 {[%clk 0:02:01]} 14. Qb3+ {[%clk 0:01:52]}  e6 {[%clk 0:01:32]} 15. Ng5 {[%clk 0:01:47]}  h6 {[%clk 0:01:22]} 16. Nge4 {[%clk 0:01:46]}  Qd4 {[%clk 0:01:00]} 17. Be3 {[%clk 0:01:44]}  Qb4 {[%clk 0:00:58]} 18. Bxc5 {[%clk 0:01:43]}  Qxb3 {[%clk 0:00:58]} 19. axb3 {[%clk 0:01:44]}  Rf7 {[%clk 0:00:57]} 20. a7 {[%clk 0:01:23]}  Nc6 {[%clk 0:00:57]} 21. Bb5 {[%clk 0:01:21]}  Bb7 {[%clk 0:00:54]} 22. b4 {[%clk 0:01:21]}  Nc7 {[%clk 0:00:42]} 23. Nd6 {[%clk 0:01:12]}  Nxb5 {[%clk 0:00:42]} 24. Ncxb5 {[%clk 0:01:12]}  Rd7 {[%clk 0:00:37]} 25. Nxb7 {[%clk 0:01:12]}  Rxb7 {[%clk 0:00:36]} 26. Nd6 {[%clk 0:01:12]}  Rd7 {[%clk 0:00:29]} 27. b5 {[%clk 0:01:09]}  Nd4 {[%clk 0:00:24]} 28. Bxd4 {[%clk 0:01:03]}  exd4 {[%clk 0:00:25]} 29. b6 {[%clk 0:01:03]}  Be5 {[%clk 0:00:11]} 30. Nc4 {[%clk 0:01:00]}  Bf4 {[%clk 0:00:07]} 31. g3 {[%clk 0:01:00]}  Bg5 {[%clk 0:00:07]} 32. f4 {[%clk 0:01:00]}  Be7 {[%clk 0:00:06]} 33. Kd2 {[%clk 0:00:58]}  Bb4+ {[%clk 0:00:06]} 34. Kd3 {[%clk 0:00:58]}  Bc5 {[%clk 0:00:07]} 35. Rxh6 {[%clk 0:00:57]}  Kg7 {[%clk 0:00:06]} 36. Rah1 {[%clk 0:00:57]}  Kf6 {[%clk 0:00:04]} 37. g4 {[%clk 0:00:53]}  e5 {[%clk 0:00:04]} 38. Ke4 {[%clk 0:00:51]}  exf4 {[%clk 0:00:04]} 39. Kxf4 {[%clk 0:00:43]}  d3 {[%clk 0:00:04]} 40. g5+ {[%clk 0:00:42]}  Ke6 {[%clk 0:00:04]} 41. Rxg6+ {[%clk 0:00:40]}  Kd5 {[%clk 0:00:05]} 42. Ne5 {[%clk 0:00:38]}  Re7 {[%clk 0:00:04]} 43. Nxd3 {[%clk 0:00:37]}  Kc4 {[%clk 0:00:00]} 44. Ne5+ {[%clk 0:00:36]} 1-0


[Site "https://www.chess.com"]

[Event "Titled Tuesday Blitz June 13 Early 2023"]
[White "Shapiro, Daniel"]
[Black "Zochowski, Kacper"]
[WhiteFideId "2001780"]
[BlackFideId "1125494"]
[WhiteElo "2345"]
[BlackElo "2235"]
[Result "0-1"]
[Round "1"]
[TimeControl "180+2"]
[Date "2023.06.13"]
[WhiteClock "0:00:00"]
[BlackClock "0:01:09"]
[Board "143"]

1. d4 {[%clk 0:02:48]}  d6 {[%clk 0:02:59]} 2. e4 {[%clk 0:02:46]}  Nf6 {[%clk 0:02:59]} 3. Nc3 {[%clk 0:02:43]}  e5 {[%clk 0:02:59]} 4. Nge2 {[%clk 0:02:38]}  Nbd7 {[%clk 0:02:57]} 5. h3 {[%clk 0:02:38]}  Be7 {[%clk 0:02:46]} 6. g4 {[%clk 0:02:36]}  O-O {[%clk 0:02:46]} 7. Bg2 {[%clk 0:02:36]}  c6 {[%clk 0:02:46]} 8. a4 {[%clk 0:02:35]}  Qc7 {[%clk 0:02:44]} 9. a5 {[%clk 0:02:30]}  Rb8 {[%clk 0:02:44]} 10. Be3 {[%clk 0:02:29]}  b5 {[%clk 0:02:32]} 11. axb6 {[%clk 0:02:27]}  axb6 {[%clk 0:02:33]} 12. O-O {[%clk 0:02:24]}  b5 {[%clk 0:02:33]} 13. Ng3 {[%clk 0:02:21]}  b4 {[%clk 0:02:33]} 14. Nce2 {[%clk 0:02:21]}  g6 {[%clk 0:02:31]} 15. f4 {[%clk 0:02:18]}  exd4 {[%clk 0:02:28]} 16. Bxd4 {[%clk 0:02:14]}  c5 {[%clk 0:02:28]} 17. Be3 {[%clk 0:02:13]}  Bb7 {[%clk 0:02:22]} 18. g5 {[%clk 0:02:11]}  Ne8 {[%clk 0:02:21]} 19. h4 {[%clk 0:02:05]}  d5 {[%clk 0:02:21]} 20. exd5 {[%clk 0:01:58]}  Nd6 {[%clk 0:02:21]} 21. f5 {[%clk 0:01:53]}  Nc4 {[%clk 0:02:21]} 22. Bc1 {[%clk 0:01:40]}  Ra8 {[%clk 0:02:08]} 23. Rxa8 {[%clk 0:01:36]}  Rxa8 {[%clk 0:02:09]} 24. b3 {[%clk 0:01:36]}  Nd6 {[%clk 0:02:05]} 25. h5 {[%clk 0:01:25]}  Ra1 {[%clk 0:01:53]} 26. Qd3 {[%clk 0:00:44]}  Ba6 {[%clk 0:01:50]} 27. Qf3 {[%clk 0:00:40]}  Ne5 {[%clk 0:01:45]} 28. Qf4 {[%clk 0:00:40]}  Ne8 {[%clk 0:01:44]} 29. fxg6 {[%clk 0:00:35]}  hxg6 {[%clk 0:01:45]} 30. hxg6 {[%clk 0:00:31]}  fxg6 {[%clk 0:01:41]} 31. d6 {[%clk 0:00:31]}  Bxd6 {[%clk 0:01:27]} 32. Bd5+ {[%clk 0:00:31]}  Kg7 {[%clk 0:01:23]} 33. Kg2 {[%clk 0:00:17]}  Qe7 {[%clk 0:01:21]} 34. Rh1 {[%clk 0:00:16]}  Bb7 {[%clk 0:01:10]} 35. Bxb7 {[%clk 0:00:09]}  Qxb7+ {[%clk 0:01:11]} 36. Kf2 {[%clk 0:00:08]}  Nd3+ {[%clk 0:01:10]} 37. cxd3 {[%clk 0:00:04]}  Bxf4 {[%clk 0:01:11]} 38. Bxf4 {[%clk 0:00:00]}  Rxh1 {[%clk 0:01:09]} 0-1


[Site "https://www.chess.com"]

[Event "Titled Tuesday Blitz June 13 Early 2023"]
[White "Asavasaetakul, Chawit"]
[Black "Slavin, Alexey"]
[WhiteFideId "6204856"]
[BlackFideId "24104388"]
[WhiteElo "1919"]
[BlackElo "2264"]
[Result "0-1"]
[Round "1"]
[TimeControl "180+2"]
[Date "2023.06.13"]
[WhiteClock "0:00:25"]
[BlackClock "0:00:37"]
[Board "144"]

1. e4 {[%clk 0:03:00]}  Nc6 {[%clk 0:02:58]} 2. Nf3 {[%clk 0:02:59]}  d6 {[%clk 0:02:58]} 3. Nc3 {[%clk 0:02:58]}  Nf6 {[%clk 0:02:58]} 4. Bc4 {[%clk 0:02:57]}  Bg4 {[%clk 0:02:58]} 5. h3 {[%clk 0:02:31]}  Bh5 {[%clk 0:02:57]} 6. d3 {[%clk 0:02:14]}  e5 {[%clk 0:02:54]} 7. Bg5 {[%clk 0:02:09]}  Be7 {[%clk 0:02:54]} 8. g4 {[%clk 0:02:07]}  Bg6 {[%clk 0:02:53]} 9. Nh4 {[%clk 0:02:04]}  Nxe4 {[%clk 0:02:30]} 10. Bxe7 {[%clk 0:01:58]}  Nxc3 {[%clk 0:02:29]} 11. Bxd8 {[%clk 0:01:56]}  Nxd1 {[%clk 0:02:27]} 12. Bxc7 {[%clk 0:01:56]}  Nxb2 {[%clk 0:02:26]} 13. Bb3 {[%clk 0:01:55]}  Kd7 {[%clk 0:02:23]} 14. Bxd6 {[%clk 0:01:44]}  Kxd6 {[%clk 0:02:20]} 15. Nxg6 {[%clk 0:01:43]}  hxg6 {[%clk 0:02:14]} 16. Rb1 {[%clk 0:01:42]}  Nxd3+ {[%clk 0:02:06]} 17. cxd3 {[%clk 0:01:43]}  f6 {[%clk 0:01:53]} 18. Bf7 {[%clk 0:01:26]}  g5 {[%clk 0:01:45]} 19. Rxb7 {[%clk 0:01:23]}  Nd8 {[%clk 0:01:40]} 20. Bd5 {[%clk 0:00:49]}  Nxb7 {[%clk 0:01:38]} 21. Bxb7 {[%clk 0:00:49]}  Rab8 {[%clk 0:01:36]} 22. Bf3 {[%clk 0:00:50]}  Rb1+ {[%clk 0:01:29]} 23. Bd1 {[%clk 0:00:49]}  Ra1 {[%clk 0:01:29]} 24. a4 {[%clk 0:00:48]}  Rb8 {[%clk 0:01:25]} 25. Kd2 {[%clk 0:00:42]}  Rb2+ {[%clk 0:01:21]} 26. Ke3 {[%clk 0:00:42]}  Rbb1 {[%clk 0:01:20]} 27. Kd2 {[%clk 0:00:42]}  Kc5 {[%clk 0:01:16]} 28. Re1 {[%clk 0:00:42]}  a5 {[%clk 0:01:11]} 29. Ke2 {[%clk 0:00:35]}  Kd4 {[%clk 0:01:03]} 30. Rg1 {[%clk 0:00:22]}  Rxd1 {[%clk 0:00:41]} 31. Rxd1 {[%clk 0:00:21]}  Rxd1 {[%clk 0:00:40]} 32. Kxd1 {[%clk 0:00:22]}  Kxd3 {[%clk 0:00:40]} 33. Ke1 {[%clk 0:00:21]}  Kc3 {[%clk 0:00:41]} 34. Ke2 {[%clk 0:00:22]}  Kb4 {[%clk 0:00:41]} 35. Ke3 {[%clk 0:00:23]}  Kxa4 {[%clk 0:00:40]} 36. Ke4 {[%clk 0:00:23]}  Kb3 {[%clk 0:00:40]} 37. Kf5 {[%clk 0:00:24]}  a4 {[%clk 0:00:39]} 38. Kg6 {[%clk 0:00:25]}  a3 {[%clk 0:00:39]} 39. Kxg7 {[%clk 0:00:25]}  a2 {[%clk 0:00:40]} 40. Kxf6 {[%clk 0:00:26]}  a1=Q {[%clk 0:00:39]} 41. Kxg5 {[%clk 0:00:27]}  Qf1 {[%clk 0:00:38]} 42. h4 {[%clk 0:00:26]}  Qxf2 {[%clk 0:00:38]} 43. Kh5 {[%clk 0:00:26]}  Qf7+ {[%clk 0:00:38]} 44. Kh6 {[%clk 0:00:26]}  e4 {[%clk 0:00:38]} 45. g5 {[%clk 0:00:27]}  e3 {[%clk 0:00:38]} 46. g6 {[%clk 0:00:25]}  Qg8 {[%clk 0:00:37]} 0-1


[Site "https://www.chess.com"]